[Event "12th National Amateur Chess-ch 2025"]
[Site "Bihar"]
[Date "2025.03.25"]
[Round "1.1"]
[White "Anadkat Kartavya"]
[Black "Shreyas Mishra"]
[Result "1-0"]
[Annotator "NA RC"]
[ECO "B12"]
[WhiteElo "2175"]
[BlackElo "1789"]
[PlyCount "61"]
[EventDate "2025.03.25"]
[EventCountry "IND"]
[SourceTitle "playchess.com"]
[Source "ChessBase"]
[SourceQuality "1"]
[TimeControl "5400+30"]

1. e4 {[%emt 0:00:02]} c6 {[%emt 0:00:12]} 2. d4 {[%emt 0:00:49]} d5 {[%emt 0:00:10]} 3. e5 {[%emt 0:00:30]} Bf5 {[%emt 0:00:15]} 4. h4 {[%emt 0:00:06]} h5 {[%emt 0:00:12]} 5. Bg5 {[%emt 0:01:05]} Qb6 {[%emt 0:02:30]} 6. Bd3 {[%emt 0:00:03]} Qxd4 {[%emt 0:04:11]} 7. Nf3 {[%emt 0:00:16]} Qg4 {[%emt 0:00:08]} 8. Bxf5 {[%emt 0:00:05]} Qxf5 {[%emt 0:00:03]} 9. c4 {[%emt 0:00:01]} Qe4+ {[%emt 0:00:01]} 10. Be3 {[%emt 0:00:01]} e6 {[%emt 0:00:09]} 11. cxd5 {[%emt 0:00:11]} Qxd5 {[%emt 0:01:07]} 12. Qc2 {[%emt 0:00:02]} Bb4+ {[%emt 0:05:21]} 13. Nc3 {[%emt 0:00:52]} Ne7 {[%emt 0:01:56]} 14. O-O {[%emt 0:01:41]} Bxc3 {[%emt 0:02:44]} 15. bxc3 {[%emt 0:01:35]} O-O {[%emt 0:11:36]} 16. Rad1 {[%emt 0:09:11]} Qa5 {[%emt 0:00:00]} 17. Bg5 {[%emt 0:09:21]} Nf5 {[%emt 0:00:00]} 18. Rfe1 {[%emt 0:01:53]} c5 {[%emt 0:03:29]} 19. Re4 {[%emt 0:12:16]} Qc7 {[%emt 0:04:37]} 20. g4 {[%emt 0:05:16]} hxg4 {[%emt 0:12:47]} 21. Rxg4 {[%emt 0:00:16]} Kh8 {[%emt 0:05:17]} 22. Qe2 {[%emt 0:22:20]} Nc6 {[%emt 0:04:45]} 23. Rg2 {[%emt 0:07:39]} f6 {[%emt 0:07:05]} 24. exf6 {[%emt 0:07:30]} gxf6 {[%emt 0:00:02]} 25. Qxe6 {[%emt 0:00:07]} fxg5 {[%emt 0:13:22]} 26. Rd7 {[%emt 0:00:13]} Nd8 {[%emt 0:01:51]} 27. Qd5 {[%emt 0:01:17]} Qc6 {[%emt 0:01:01]} 28. Qe5+ {[%emt 0:00:04]} Qf6 {[%emt 0:00:28]} 29. Rxg5 {[%emt 0:00:01]} Nc6 {[%emt 0:02:41]} 30. Rh5+ {[%emt 0:02:09]} Nh6 {[%emt 0:00:23]} 31. Rxh6+ {[%emt 0:00:09]} 1-0

[Event "12th National Amateur Chess-ch 2025"]
[Site "Bihar"]
[Date "2025.03.25"]
[Round "1.2"]
[White "Sanjay Ganesh Pandi"]
[Black "Sham R"]
[Result "1-0"]
[Annotator "NA RC"]
[ECO "A41"]
[WhiteElo "1781"]
[BlackElo "2128"]
[PlyCount "127"]
[EventDate "2025.03.25"]
[EventCountry "IND"]
[SourceTitle "playchess.com"]
[Source "ChessBase"]
[SourceQuality "1"]
[TimeControl "5400+30"]

1. d4 {[%emt 0:00:04]} d6 {[%emt 0:00:45]} 2. Bf4 {[%emt 0:00:52]} Bg4 {[%emt 0:00:24]} 3. Nf3 {[%emt 0:03:08]} Nd7 {[%emt 0:00:05]} 4. Nbd2 {[%emt 0:02:29]} c5 {[%emt 0:01:16]} 5. e3 {[%emt 0:05:51]} Ngf6 {[%emt 0:01:39]} 6. h3 {[%emt 0:00:43]} Bh5 {[%emt 0:00:10]} 7. Be2 {[%emt 0:00:06]} Rc8 {[%emt 0:01:06]} 8. c3 {[%emt 0:01:58]} h6 {[%emt 0:01:43]} 9. O-O {[%emt 0:03:38]} g5 {[%emt 0:00:29]} 10. Bg3 {[%emt 0:02:37]} Bg7 {[%emt 0:00:23]} 11. h4 {[%emt 0:04:14]} cxd4 {[%emt 0:11:15]} 12. exd4 {[%emt 0:02:09]} Bg6 {[%emt 0:14:53]} 13. hxg5 {[%emt 0:01:57]} hxg5 {[%emt 0:01:38]} 14. Nxg5 {[%emt 0:00:02]} Nh5 {[%emt 0:01:29]} 15. Bh2 {[%emt 0:02:03]} e5 {[%emt 0:01:24]} 16. Nh3 {[%emt 0:15:19]} Nf4 {[%emt 0:07:25]} 17. Bxf4 {[%emt 0:07:10]} exf4 18. Bg4 {[%emt 0:00:05]} Qh4 {[%emt 0:10:40]} 19. Re1+ {[%emt 0:05:03]} Kd8 {[%emt 0:00:02]} 20. Bxd7 {[%emt 0:00:10]} Kxd7 {[%emt 0:00:04]} 21. Nf3 {[%emt 0:00:08]} Qf6 {[%emt 0:14:50]} 22. Ne5+ {[%emt 0:00:52]} Kc7 {[%emt 0:05:55]} 23. Nxg6 {[%emt 0:04:06]} fxg6 {[%emt 0:00:05]} 24. Qg4 {[%emt 0:00:19]} Rh4 {[%emt 0:01:19]} 25. Qe6 {[%emt 0:04:51]} Rch8 {[%emt 0:01:39]} 26. Qe7+ {[%emt 0:04:25]} Kc6 {[%emt 0:01:27]} 27. Qxf6 {[%emt 0:20:34]} Bxf6 {[%emt 0:00:02]} 28. f3 {[%emt 0:00:02]} g5 {[%emt 0:01:52]} 29. Nf2 {[%emt 0:02:59]} Kd7 {[%emt 0:06:08]} 30. Ng4 {[%emt 0:00:22]} Bd8 {[%emt 0:01:17]} 31. Kf2 {[%emt 0:00:22]} b5 {[%emt 0:03:22]} 32. a4 {[%emt 0:04:18]} bxa4 {[%emt 0:00:05]} 33. Rxa4 {[%emt 0:00:04]} Bb6 {[%emt 0:00:01]} 34. Nf6+ {[%emt 0:01:15]} Kc6 {[%emt 0:00:06]} 35. Rc4+ {[%emt 0:00:34]} Kb5 {[%emt 0:00:28]} 36. b3 {[%emt 0:01:57]} R4h6 {[%emt 0:02:55]} 37. Nd7 Bd8 {[%emt 0:01:59]} 38. Rb4+ {[%emt 0:02:00]} Kc6 {[%emt 0:00:09]} 39. Nb8+ {[%emt 0:00:02]} Kc7 {[%emt 0:00:38]} 40. Ra1 {[%emt 0:00:12]} d5 {[%emt 0:07:37]} 41. Rxa7+ {[%emt 0:00:19]} Kc8 {[%emt 0:00:03]} 42. Na6 {[%emt 0:00:26]} Bb6 {[%emt 0:00:43]} 43. Rxb6 {[%emt 0:00:27]} Rxb6 {[%emt 0:00:03]} 44. Ra8+ {[%emt 0:00:11]} Kb7 {[%emt 0:00:01]} 45. Rxh8 {[%emt 0:00:40]} Kxa6 {[%emt 0:00:02]} 46. Rc8 {[%emt 0:01:48]} Rxb3 {[%emt 0:00:40]} 47. Rc5 {[%emt 0:00:05]} Rb2+ {[%emt 0:00:51]} 48. Kg1 {[%emt 0:00:08]} Rb5 {[%emt 0:00:03]} 49. Rc6+ {[%emt 0:00:38]} Rb6 {[%emt 0:00:03]} 50. Rxb6+ {[%emt 0:00:46]} Kxb6 {[%emt 0:00:18]} 51. Kf2 {[%emt 0:00:04]} Kb5 {[%emt 0:00:31]} 52. Ke2 {[%emt 0:00:05]} Ka4 {[%emt 0:00:24]} 53. Kd2 {[%emt 0:00:10]} Ka5 {[%emt 0:01:16]} 54. Kc2 {[%emt 0:00:10]} Ka6 {[%emt 0:00:44]} 55. Kb3 {[%emt 0:01:07]} Kb5 {[%emt 0:00:03]} 56. c4+ {[%emt 0:00:07]} Kc6 {[%emt 0:03:13]} 57. cxd5+ {[%emt 0:00:12]} Kxd5 {[%emt 0:00:05]} 58. Kc3 {[%emt 0:00:03]} Ke6 {[%emt 0:00:54]} 59. Kc4 {[%emt 0:00:14]} g4 {[%emt 0:00:05]} 60. Kc5 {[%emt 0:00:48]} gxf3 {[%emt 0:00:58]} 61. gxf3 {[%emt 0:00:05]} Kf6 {[%emt 0:00:30]} 62. d5 {[%emt 0:00:13]} Kg5 {[%emt 0:00:01]} 63. d6 {[%emt 0:00:27]} Kh4 {[%emt 0:00:10]} 64. Kd4 {[%emt 0:00:05]} 1-0

[Event "12th National Amateur Chess-ch 2025"]
[Site "Bihar"]
[Date "2025.03.25"]
[Round "1.3"]
[White "Daksh Goyal"]
[Black "Rishen Jilowa"]
[Result "1-0"]
[Annotator "NA RC"]
[ECO "B95"]
[WhiteElo "2079"]
[BlackElo "1779"]
[PlyCount "111"]
[EventDate "2025.03.25"]
[EventCountry "IND"]
[SourceTitle "playchess.com"]
[Source "ChessBase"]
[SourceQuality "1"]
[TimeControl "5400+30"]

1. e4 c5 2. Nf3 d6 3. d4 cxd4 4. Nxd4 Nf6 5. Nc3 a6 6. Qd3 e6 7. Be2 Be7 8. Bg5 O-O 9. f4 Qc7 10. Bf3 Bd7 11. O-O-O Nc6 12. g4 Rac8 13. h4 Nb4 14. Qd2 Qa5 15. Kb1 Rxc3 16. Qxc3 Qxa2+ 17. Kc1 Qa5 18. Kb1 Qa2+ 19. Kc1 Qa5 20. Qb3 Rc8 21. c3 Ba4 22. Qa3 d5 23. Kb1 dxe4 24. Bxf6 gxf6 25. Bxe4 Nd5 26. Qa2 Qb6 27. Bxd5 Bxd1 28. Bxe6 fxe6 29. Rxd1 Rxc3 30. Nxe6 Rc8 31. Nd4+ Kh8 32. Qf7 Qb4 33. h5 Rf8 34. Qb3 Rd8 {[%emt 0:04:40]} 35. Qxb4 {[%emt 0:00:20]} Bxb4 {[%emt 0:00:01]} 36. Kc2 {[%emt 0:00:07]} Kg8 {[%emt 0:00:35]} 37. Kd3 {[%emt 0:00:59]} Bc5 {[%emt 0:00:49]} 38. Kc4 {[%emt 0:00:26]} Ba7 {[%emt 0:00:23]} 39. Rd3 {[%emt 0:00:23]} Rc8+ {[%emt 0:00:06]} 40. Kb3 {[%emt 0:00:26]} Rd8 {[%emt 0:00:08]} 41. Kc3 {[%emt 0:00:13]} Rc8+ {[%emt 0:00:05]} 42. Kd2 {[%emt 0:00:17]} Bxd4 {[%emt 0:01:11]} 43. Rxd4 {[%emt 0:00:01]} Rc7 {[%emt 0:00:29]} 44. Rd8+ {[%emt 0:00:44]} Kf7 {[%emt 0:01:16]} 45. Ke3 {[%emt 0:00:05]} Ke6 {[%emt 0:00:33]} 46. Rh8 {[%emt 0:00:48]} Kd5 {[%emt 0:00:47]} 47. h6 {[%emt 0:00:50]} Ke6 {[%emt 0:00:44]} 48. Kd3 {[%emt 0:01:07]} Kd5 {[%emt 0:00:33]} 49. Rg8 {[%emt 0:00:36]} Ke6 {[%emt 0:00:32]} 50. f5+ {[%emt 0:00:31]} Ke5 {[%emt 0:00:32]} 51. Rg7 {[%emt 0:00:17]} Kd6 {[%emt 0:00:21]} 52. Kd4 {[%emt 0:00:20]} Rd7 {[%emt 0:00:01]} 53. Ke4 {[%emt 0:00:46]} Kc6 {[%emt 0:01:00]} 54. g5 {[%emt 0:00:17]} fxg5 {[%emt 0:00:38]} 55. f6 {[%emt 0:00:14]} Rd6 {[%emt 0:00:26]} 56. Kf5 1-0

[Event "12th National Amateur Chess-ch 2025"]
[Site "Bihar"]
[Date "2025.03.25"]
[Round "1.4"]
[White "Manav Kumar"]
[Black "Utkrisht Tuli"]
[Result "1/2-1/2"]
[Annotator "NA RC"]
[ECO "A13"]
[WhiteElo "1777"]
[BlackElo "2020"]
[PlyCount "150"]
[EventDate "2025.03.25"]
[EventCountry "IND"]
[SourceTitle "playchess.com"]
[Source "ChessBase"]
[SourceQuality "1"]
[TimeControl "5400+30"]

1. Nf3 {[%emt 0:00:09]} d5 {[%emt 0:10:35]} 2. e3 {[%emt 0:00:07]} Nf6 {[%emt 0:00:09]} 3. c4 {[%emt 0:00:04]} e6 {[%emt 0:00:09]} 4. Nc3 {[%emt 0:00:03]} Be7 {[%emt 0:00:30]} 5. b3 {[%emt 0:00:08]} O-O {[%emt 0:00:13]} 6. Bb2 {[%emt 0:00:13]} c5 {[%emt 0:00:15]} 7. cxd5 {[%emt 0:00:15]} exd5 {[%emt 0:00:05]} 8. d4 {[%emt 0:00:03]} Nc6 {[%emt 0:01:14]} 9. Be2 {[%emt 0:00:09]} Bg4 {[%emt 0:07:17]} 10. O-O {[%emt 0:00:23]} Bxf3 {[%emt 0:00:24]} 11. Bxf3 {[%emt 0:00:06]} cxd4 {[%emt 0:00:07]} 12. exd4 {[%emt 0:00:56]} Qd7 {[%emt 0:01:36]} 13. Rc1 {[%emt 0:02:25]} Rfd8 {[%emt 0:01:10]} 14. Na4 {[%emt 0:06:17]} b6 {[%emt 0:10:06]} 15. Be2 {[%emt 0:00:02]} Na5 {[%emt 0:00:21]} 16. Bd3 {[%emt 0:03:51]} Bd6 {[%emt 0:04:35]} 17. Qf3 {[%emt 0:01:27]} Re8 {[%emt 0:11:56]} 18. Nc3 {[%emt 0:02:41]} Nc6 {[%emt 0:07:54]} 19. Nb5 {[%emt 0:00:23]} Bf8 {[%emt 0:01:13]} 20. Bf5 {[%emt 0:11:31]} Qb7 {[%emt 0:00:42]} 21. Qc3 {[%emt 0:03:41]} Re2 {[%emt 0:05:41]} 22. Ba3 {[%emt 0:12:25]} Bxa3 {[%emt 0:01:57]} 23. Qxc6 {[%emt 0:00:04]} Qxc6 {[%emt 0:02:26]} 24. Rxc6 {[%emt 0:00:03]} Bb2 {[%emt 0:01:20]} 25. Rd1 {[%emt 0:02:46]} Ne4 {[%emt 0:08:04]} 26. Bxe4 {[%emt 0:04:21]} Rxe4 {[%emt 0:00:10]} 27. Rc2 {[%emt 0:00:05]} a6 {[%emt 0:00:22]} 28. f3 {[%emt 0:05:39]} Rf4 {[%emt 0:03:17]} 29. Nc7 {[%emt 0:03:08]} Rc8 {[%emt 0:00:17]} 30. Rxb2 {[%emt 0:00:08]} Rxc7 {[%emt 0:00:45]} 31. Re2 {[%emt 0:00:02]} g6 {[%emt 0:00:36]} 32. Re5 {[%emt 0:00:36]} Rd7 {[%emt 0:03:39]} 33. Kf2 {[%emt 0:02:15]} Kg7 {[%emt 0:00:16]} 34. g3 {[%emt 0:00:51]} Rf6 {[%emt 0:00:03]} 35. Rc1 {[%emt 0:00:06]} a5 {[%emt 0:00:25]} 36. Rc8 {[%emt 0:00:18]} h5 {[%emt 0:00:11]} 37. h4 {[%emt 0:00:35]} Rfd6 {[%emt 0:02:22]} 38. g4 {[%emt 0:02:09]} hxg4 {[%emt 0:00:07]} 39. fxg4 {[%emt 0:00:16]} Rd8 {[%emt 0:00:18]} 40. Rc7 {[%emt 0:00:42]} R8d7 {[%emt 0:00:08]} 41. Rc3 {[%emt 0:00:13]} Rf6+ {[%emt 0:00:56]} 42. Kg3 {[%emt 0:00:18]} Rf1 {[%emt 0:01:43]} 43. Re8 {[%emt 0:00:39]} Rg1+ {[%emt 0:00:35]} 44. Kf3 {[%emt 0:00:35]} Rf1+ {[%emt 0:00:15]} 45. Kg3 {[%emt 0:14:01]} Rg1+ {[%emt 0:00:10]} 46. Kh3 {[%emt 0:00:12]} Rh1+ {[%emt 0:00:23]} 47. Kg3 {[%emt 0:03:12]} Rg1+ {[%emt 0:00:14]} 48. Kf3 {[%emt 0:00:08]} Rf1+ {[%emt 0:00:14]} 49. Kg2 {[%emt 0:07:28]} Rf4 {[%emt 0:00:11]} 50. Kg3 {[%emt 0:00:01]} Rf1 {[%emt 0:00:37]} 51. g5 {[%emt 0:01:08]} f6 {[%emt 0:00:11]} 52. Rcc8 {[%emt 0:00:46]} fxg5 {[%emt 0:00:16]} 53. Rg8+ {[%emt 0:00:18]} Kh7 {[%emt 0:00:02]} 54. Rh8+ {[%emt 0:01:00]} Kg7 {[%emt 0:00:16]} 55. Rcg8+ {[%emt 0:00:08]} Kf7 {[%emt 0:00:07]} 56. Rf8+ {[%emt 0:00:22]} Kg7 {[%emt 0:00:01]} 57. Rxf1 {[%emt 0:00:19]} Kxh8 {[%emt 0:00:12]} 58. hxg5 {[%emt 0:00:03]} Rd6 {[%emt 0:01:23]} 59. Rf7 {[%emt 0:01:37]} Kg8 {[%emt 0:00:09]} 60. Rb7 {[%emt 0:00:21]} Kf8 {[%emt 0:00:06]} 61. a3 {[%emt 0:00:36]} Re6 {[%emt 0:00:28]} 62. Kf3 {[%emt 0:00:04]} Ke8 {[%emt 0:00:12]} 63. b4 {[%emt 0:02:51]} axb4 {[%emt 0:00:07]} 64. axb4 {[%emt 0:00:01]} Kd8 {[%emt 0:00:15]} 65. b5 {[%emt 0:00:30]} Ke8 {[%emt 0:01:03]} 66. Rc7 {[%emt 0:00:58]} Kd8 {[%emt 0:00:14]} 67. Rb7 {[%emt 0:01:13]} Ke8 {[%emt 0:00:10]} 68. Kf4 {[%emt 0:00:18]} Re4+ {[%emt 0:00:10]} 69. Kf3 {[%emt 0:00:17]} Re6 {[%emt 0:00:09]} 70. Kg3 {[%emt 0:00:03]} Kd8 {[%emt 0:00:08]} 71. Kf2 {[%emt 0:00:38]} Kc8 {[%emt 0:00:10]} 72. Rf7 {[%emt 0:00:21]} Kd8 {[%emt 0:00:08]} 73. Kf3 {[%emt 0:00:11]} Ke8 {[%emt 0:00:08]} 74. Rg7 {[%emt 0:00:09]} Kd8 {[%emt 0:00:13]} 75. Ra7 {[%emt 0:00:14]} Ke8 {[%emt 0:00:07]} 1/2-1/2

[Event "12th National Amateur Chess-ch 2025"]
[Site "Bihar"]
[Date "2025.03.25"]
[Round "1.5"]
[White "Pradeep Tiwari"]
[Black "Aarush Bhat"]
[Result "1/2-1/2"]
[Annotator "NA RC"]
[ECO "D02"]
[WhiteElo "1979"]
[BlackElo "1766"]
[PlyCount "92"]
[EventDate "2025.03.25"]
[EventCountry "IND"]
[SourceTitle "playchess.com"]
[Source "ChessBase"]
[SourceQuality "1"]
[TimeControl "5400+30"]

1. Nf3 {[%emt 0:00:15]} Nf6 {[%emt 0:00:19]} 2. g3 {[%emt 0:00:11]} d5 {[%emt 0:00:46]} 3. d4 {[%emt 0:00:19]} c5 {[%emt 0:00:50]} 4. Bg2 {[%emt 0:00:21]} Nc6 {[%emt 0:00:31]} 5. O-O {[%emt 0:01:07]} e6 {[%emt 0:01:47]} 6. b3 {[%emt 0:03:55]} Bd6 {[%emt 0:02:28]} 7. Bb2 {[%emt 0:00:13]} O-O {[%emt 0:01:17]} 8. Nbd2 {[%emt 0:00:58]} Re8 {[%emt 0:01:53]} 9. c4 {[%emt 0:01:37]} cxd4 {[%emt 0:02:29]} 10. cxd5 {[%emt 0:01:00]} Nxd5 {[%emt 0:00:56]} 11. Nxd4 {[%emt 0:00:16]} Nxd4 {[%emt 0:04:06]} 12. Bxd4 {[%emt 0:00:24]} Be7 {[%emt 0:01:31]} 13. Nc4 {[%emt 0:01:27]} Bf6 {[%emt 0:01:58]} 14. e4 {[%emt 0:04:22]} Nb4 {[%emt 0:06:51]} 15. Bxf6 {[%emt 0:00:54]} Qxf6 {[%emt 0:00:19]} 16. e5 {[%emt 0:00:40]} Qe7 {[%emt 0:00:23]} 17. Qd6 {[%emt 0:01:49]} Bd7 {[%emt 0:05:51]} 18. Bxb7 {[%emt 0:07:32]} Rab8 {[%emt 0:00:13]} 19. Be4 {[%emt 0:02:06]} Bb5 {[%emt 0:00:52]} 20. Rfc1 {[%emt 0:04:12]} Bxc4 {[%emt 0:06:09]} 21. Qxe7 {[%emt 0:02:31]} Rxe7 {[%emt 0:00:08]} 22. Rxc4 {[%emt 0:00:13]} Rd7 {[%emt 0:00:44]} 23. a3 {[%emt 0:00:57]} Nd5 {[%emt 0:01:49]} 24. b4 {[%emt 0:11:23]} Nb6 {[%emt 0:01:19]} 25. Rc2 {[%emt 0:00:41]} Rd4 {[%emt 0:00:36]} 26. Bf3 {[%emt 0:01:09]} Nc4 {[%emt 0:02:16]} 27. Be2 {[%emt 0:06:50]} Nxe5 {[%emt 0:00:44]} 28. Rc7 {[%emt 0:01:35]} Rd2 {[%emt 0:03:59]} 29. Rac1 {[%emt 0:03:02]} g5 {[%emt 0:01:52]} 30. R1c2 {[%emt 0:00:35]} Rbd8 {[%emt 0:01:49]} 31. h3 {[%emt 0:00:40]} R8d7 {[%emt 0:01:25]} 32. Kf1 {[%emt 0:00:36]} Kf8 {[%emt 0:02:16]} 33. Rxd7 {[%emt 0:03:15]} Rxd7 {[%emt 0:00:17]} 34. Rc5 {[%emt 0:00:26]} Rd5 {[%emt 0:01:20]} 35. Rc7 {[%emt 0:01:32]} Rd7 {[%emt 0:00:50]} 36. Rc8+ {[%emt 0:00:00]} Kg7 {[%emt 0:02:01]} 37. Rc5 {[%emt 0:00:00]} Kf6 {[%emt 0:01:21]} 38. Ke1 {[%emt 0:00:12]} h5 {[%emt 0:02:01]} 39. Rc3 {[%emt 0:02:30]} g4 {[%emt 0:04:14]} 40. h4 {[%emt 0:00:13]} Ke7 {[%emt 0:01:51]} 41. Rc5 {[%emt 0:02:03]} Kf6 {[%emt 0:02:55]} 42. Rc3 {[%emt 0:02:12]} Ke7 {[%emt 0:02:58]} 43. Rc5 {[%emt 0:05:46]} Kf6 {[%emt 0:00:15]} 44. Rc3 {[%emt 0:00:43]} Ke7 {[%emt 0:00:06]} 45. Rc5 {[%emt 0:06:13]} Kf6 {[%emt 0:00:12]} 46. Rc3 {[%emt 0:01:26]} Ke7 {[%emt 0:00:30]} 1/2-1/2

[Event "12th National Amateur Chess-ch 2025"]
[Site "Bihar"]
[Date "2025.03.25"]
[Round "1.6"]
[White "Bhupendra, Kumar"]
[Black "Ebenezer, Joseph"]
[Result "0-1"]
[Annotator "NA RC"]
[ECO "C02"]
[WhiteElo "1764"]
[BlackElo "1961"]
[PlyCount "98"]
[EventDate "2025.03.25"]
[EventCountry "IND"]
[SourceTitle "playchess.com"]
[Source "ChessBase"]
[SourceQuality "1"]
[TimeControl "5400+30"]

1. e4 {[%emt 0:00:12]} e6 {[%emt 0:00:33]} 2. d4 {[%emt 0:00:20]} d5 {[%emt 0:00:26]} 3. e5 {[%emt 0:00:55]} c5 {[%emt 0:00:10]} 4. c3 {[%emt 0:00:08]} Nc6 {[%emt 0:00:12]} 5. Nf3 {[%emt 0:00:08]} Qb6 {[%emt 0:01:10]} 6. a3 {[%emt 0:00:16]} c4 {[%emt 0:02:12]} 7. g3 {[%emt 0:01:10]} Bd7 {[%emt 0:00:16]} 8. Bh3 {[%emt 0:00:49]} Na5 {[%emt 0:00:59]} 9. Nbd2 {[%emt 0:00:10]} Ne7 {[%emt 0:01:44]} 10. Ng5 {[%emt 0:02:59]} h6 {[%emt 0:01:42]} 11. Ngf3 {[%emt 0:02:55]} Nb3 {[%emt 0:04:29]} 12. Nxb3 {[%emt 0:01:46]} Ba4 {[%emt 0:00:07]} 13. Nfd2 {[%emt 0:01:07]} g6 {[%emt 0:06:02]} 14. O-O {[%emt 0:00:35]} h5 {[%emt 0:03:48]} 15. f4 {[%emt 0:00:42]} Nf5 {[%emt 0:03:59]} 16. Bxf5 {[%emt 0:03:36]} gxf5 {[%emt 0:00:07]} 17. h4 {[%emt 0:00:14]} Be7 {[%emt 0:01:16]} 18. Kf2 {[%emt 0:02:16]} O-O-O {[%emt 0:00:43]} 19. Rh1 {[%emt 0:02:42]} Rdg8 {[%emt 0:00:50]} 20. Qe2 {[%emt 0:01:07]} cxb3 {[%emt 0:03:40]} 21. Nf3 {[%emt 0:01:05]} Rg4 {[%emt 0:00:42]} 22. c4 {[%emt 0:04:45]} dxc4 {[%emt 0:01:31]} 23. Qxc4+ {[%emt 0:00:08]} Qc6 {[%emt 0:00:13]} 24. Qxc6+ {[%emt 0:01:36]} Bxc6 {[%emt 0:00:06]} 25. Rh3 {[%emt 0:00:20]} Kd7 {[%emt 0:04:16]} 26. Be3 {[%emt 0:02:06]} Be4 {[%emt 0:12:02]} 27. Nd2 {[%emt 0:07:10]} Bd5 {[%emt 0:02:03]} 28. Rc1 {[%emt 0:00:44]} Rgg8 {[%emt 0:04:34]} 29. Nf3 {[%emt 0:02:34]} Rc8 {[%emt 0:01:39]} 30. Rhh1 {[%emt 0:00:08]} Be4 {[%emt 0:01:05]} 31. a4 {[%emt 0:00:27]} b6 {[%emt 0:09:30]} 32. Rhd1 {[%emt 0:00:38]} Rxc1 {[%emt 0:05:45]} 33. Rxc1 {[%emt 0:00:38]} Rc8 {[%emt 0:00:48]} 34. Rxc8 {[%emt 0:01:45]} Kxc8 {[%emt 0:00:02]} 35. Bd2 {[%emt 0:00:46]} Kb7 {[%emt 0:04:22]} 36. a5 {[%emt 0:01:24]} bxa5 {[%emt 0:00:46]} 37. Bxa5 {[%emt 0:00:04]} Ka6 {[%emt 0:00:05]} 38. Bc3 {[%emt 0:00:33]} Bxf3 {[%emt 0:02:49]} 39. Kxf3 {[%emt 0:00:02]} Kb5 {[%emt 0:00:09]} 40. Ke3 {[%emt 0:03:56]} Kc4 {[%emt 0:00:27]} 41. Ke2 {[%emt 0:00:56]} Bd8 {[%emt 0:00:22]} 42. Kd2 {[%emt 0:00:26]} Bb6 {[%emt 0:00:12]} 43. Ke3 {[%emt 0:06:00]} a5 {[%emt 0:00:19]} 44. g4 {[%emt 0:00:12]} fxg4 {[%emt 0:00:25]} 45. Ke4 {[%emt 0:00:02]} a4 {[%emt 0:00:42]} 46. f5 {[%emt 0:01:43]} exf5+ {[%emt 0:01:12]} 47. Kxf5 {[%emt 0:00:03]} g3 {[%emt 0:00:13]} 48. Be1 {[%emt 0:01:06]} g2 {[%emt 0:00:07]} 49. Bf2 {[%emt 0:00:16]} Bxd4 {[%emt 0:00:06]} 0-1

[Event "12th National Amateur Chess-ch 2025"]
[Site "Bihar"]
[Date "2025.03.25"]
[Round "1.8"]
[White "Amrit Raunak"]
[Black "Ashutosh, Kumar"]
[Result "0-1"]
[Annotator "NA RC"]
[ECO "B23"]
[WhiteElo "1748"]
[BlackElo "1923"]
[PlyCount "138"]
[EventDate "2025.03.25"]
[EventCountry "IND"]
[SourceTitle "playchess.com"]
[Source "ChessBase"]
[SourceQuality "1"]
[TimeControl "5400+30"]

1. e4 {[%emt 0:00:08]} c5 {[%emt 0:00:32]} 2. Nc3 {[%emt 0:00:16]} Nc6 {[%emt 0:00:24]} 3. f4 {[%emt 0:00:47]} g6 {[%emt 0:00:46]} 4. Nf3 {[%emt 0:01:38]} Bg7 {[%emt 0:00:45]} 5. Bb5 {[%emt 0:01:22]} Nd4 {[%emt 0:00:47]} 6. O-O {[%emt 0:01:36]} a6 {[%emt 0:02:03]} 7. Bc4 {[%emt 0:02:52]} e6 {[%emt 0:00:23]} 8. a4 {[%emt 0:03:46]} Ne7 {[%emt 0:00:57]} 9. e5 {[%emt 0:06:24]} d5 {[%emt 0:03:31]} 10. exd6 {[%emt 0:03:28]} Nef5 {[%emt 0:00:45]} 11. Ne4 {[%emt 0:14:40]} Nxd6 {[%emt 0:00:57]} 12. Nxd6+ {[%emt 0:02:03]} Qxd6 {[%emt 0:00:05]} 13. d3 {[%emt 0:10:26]} b6 {[%emt 0:02:02]} 14. c3 {[%emt 0:09:21]} Nc6 {[%emt 0:03:33]} 15. Ng5 {[%emt 0:14:21]} O-O {[%emt 0:01:19]} 16. Qf3 {[%emt 0:02:15]} h6 {[%emt 0:08:47]} 17. Ne4 {[%emt 0:01:12]} Qc7 {[%emt 0:00:47]} 18. Qh3 {[%emt 0:04:23]} f5 {[%emt 0:05:18]} 19. Nd2 {[%emt 0:01:09]} Bd7 {[%emt 0:02:33]} 20. Nf3 {[%emt 0:02:30]} Na5 {[%emt 0:09:24]} 21. Ba2 {[%emt 0:03:58]} Rae8 {[%emt 0:01:55]} 22. Ne5 {[%emt 0:02:28]} Rf6 {[%emt 0:00:25]} 23. b4 {[%emt 0:03:13]} Nc6 {[%emt 0:02:41]} 24. bxc5 {[%emt 0:01:24]} bxc5 {[%emt 0:02:38]} 25. Qg3 {[%emt 0:02:09]} Kh7 {[%emt 0:00:32]} 26. Nxd7 {[%emt 0:02:04]} Qxd7 {[%emt 0:00:16]} 27. Bc4 {[%emt 0:00:25]} Qc8 {[%emt 0:00:37]} 28. Be3 {[%emt 0:02:06]} Na5 {[%emt 0:00:22]} 29. Ba2 {[%emt 0:00:30]} Rff8 {[%emt 0:01:55]} 30. Rac1 {[%emt 0:00:55]} Qc6 {[%emt 0:01:36]} 31. Qf2 {[%emt 0:00:21]} Rc8 {[%emt 0:00:10]} 32. Qc2 {[%emt 0:00:12]} Rfe8 {[%emt 0:01:49]} 33. Rce1 {[%emt 0:00:37]} c4 {[%emt 0:01:41]} 34. dxc4 {[%emt 0:00:51]} Nxc4 {[%emt 0:00:09]} 35. Bd4 {[%emt 0:01:06]} e5 {[%emt 0:01:57]} 36. fxe5 {[%emt 0:00:40]} Nxe5 {[%emt 0:00:23]} 37. Qd1 {[%emt 0:00:46]} Rcd8 {[%emt 0:04:37]} 38. Rf2 {[%emt 0:00:32]} Ng4 {[%emt 0:07:56]} 39. Rxe8 {[%emt 0:00:24]} Rxe8 {[%emt 0:11:14]} 40. Rd2 {[%emt 0:00:05]} Qxa4 {[%emt 0:02:36]} 41. Bxg7 {[%emt 0:00:59]} Qf4 {[%emt 0:02:36]} 42. g3 {[%emt 0:00:30]} Qe3+ {[%emt 0:00:18]} 43. Kg2 {[%emt 0:00:18]} Kxg7 {[%emt 0:01:11]} 44. Rd7+ {[%emt 0:00:37]} Kh8 {[%emt 0:00:09]} 45. Rd2 {[%emt 0:00:26]} Qxc3 {[%emt 0:00:41]} 46. Kh3 {[%emt 0:00:32]} Ne3 {[%emt 0:02:05]} 47. Qa4 {[%emt 0:00:31]} Qe5 {[%emt 0:06:55]} 48. Qxa6 {[%emt 0:00:31]} Qa1 {[%emt 0:02:35]} 49. Rd6 {[%emt 0:00:41]} Qb2 {[%emt 0:01:14]} 50. Rd2 {[%emt 0:00:27]} Qa1 {[%emt 0:00:09]} 51. Rd6 {[%emt 0:00:21]} Qg1 {[%emt 0:01:04]} 52. Rd2 {[%emt 0:00:39]} Qf1+ {[%emt 0:02:23]} 53. Qxf1 {[%emt 0:00:02]} Nxf1 {[%emt 0:00:01]} 54. Rf2 {[%emt 0:00:25]} Re1 {[%emt 0:00:06]} 55. Bc4 {[%emt 0:00:43]} Ne3 {[%emt 0:00:13]} 56. Re2 {[%emt 0:00:50]} Rxe2 {[%emt 0:00:43]} 57. Bxe2 {[%emt 0:00:02]} Kg7 {[%emt 0:00:38]} 58. Kh4 {[%emt 0:00:55]} g5+ {[%emt 0:00:53]} 59. Kh3 {[%emt 0:00:25]} Kg6 {[%emt 0:00:29]} 60. g4 {[%emt 0:00:30]} f4 {[%emt 0:00:44]} 61. Bf3 {[%emt 0:00:18]} Kf6 {[%emt 0:00:01]} 62. Be2 {[%emt 0:00:20]} Ke5 {[%emt 0:00:20]} 63. Bf3 {[%emt 0:00:01]} Kd4 {[%emt 0:00:01]} 64. Bb7 {[%emt 0:00:22]} Kc3 {[%emt 0:00:02]} 65. Be4 {[%emt 0:00:17]} Kd2 {[%emt 0:00:11]} 66. Bf3 {[%emt 0:00:05]} Ke1 {[%emt 0:00:02]} 67. Bc6 {[%emt 0:00:52]} Kf2 {[%emt 0:00:02]} 68. Bb7 {[%emt 0:00:59]} Kg1 {[%emt 0:00:35]} 69. Ba6 {[%emt 0:00:31]} Nd1 {[%emt 0:01:27]} 0-1